fUST/lending_fUST_20260123
["ID","MTS","AMOUNT","RATE_DAILY","PERIOD"]
[403087909,1769145007794,1200.0,0.00013698,2]
[403087910,1769145008341,500.99289278,0.00013273,2]
[403087911,1769145008395,500.0,0.00013273,2]
[403087912,1769145008440,500.0,0.00013273,2]
[403087913,1769145008865,300.0,0.00013673,2]
[403087914,1769145015037,500.0,0.00013273,2]
[403087915,1769145015629,500.0,0.00013273,2]
[403087916,1769145029883,5000.0,0.00013698,2]
[403087941,1769145032375,-247.51098243,0.00013699,2]
[403087943,1769145032384,-469.406058,0.00013699,2]
[403087945,1769145032393,-87.10207129,0.00013699,2]
[403087947,1769145032404,-8602.09800152,0.00013699,2]
[403087965,1769145038407,-2714.48853827,0.00013699,2]
[403087966,1769145038461,-26257.63651743,0.00013699,2]
[403087967,1769145038471,-500.0,0.00013699,2]
[403087968,1769145038480,-500.0,0.00013699,2]
[403087969,1769145038489,-250.5355836,0.00013699,2]
[403087970,1769145038498,-500.0,0.00013699,2]
[403087971,1769145038507,-526.19064928,0.00013699,2]
[403087972,1769145038516,-500.0,0.00013699,2]
[403087973,1769145038525,-462.16420988,0.00013699,2]
[403087974,1769145038534,-500.0,0.00013699,2]
[403087975,1769145038543,-160.1223966,0.00013699,2]
[403087976,1769145038552,-160.59540986,0.00013699,2]
[403087977,1769145038561,-500.0,0.00013699,2]
[403087978,1769145038570,-500.0,0.00013699,2]
[403087979,1769145038580,-500.0,0.00013699,2]
[403087980,1769145038589,-500.0,0.00013699,2]
[403087981,1769145038598,-500.0,0.00013699,2]
[403087982,1769145038607,-500.0,0.00013699,2]
[403087983,1769145038616,-500.0,0.00013699,2]
[403087984,1769145038626,-500.0,0.00013699,2]
[403087985,1769145038635,-500.0,0.00013699,2]
[403087986,1769145038644,-500.0,0.00013699,2]
[403087987,1769145038654,-500.0,0.00013699,2]
[403087988,1769145038663,-500.0,0.00013699,2]
[403087989,1769145038672,-500.0,0.00013699,2]
[403087990,1769145038682,-500.0,0.00013699,2]
[403087991,1769145038691,-612.3513911,0.00013699,2]
[403087992,1769145038700,-500.0,0.00013699,2]
[403087993,1769145038710,-500.0,0.00013699,2]
[403087994,1769145038718,-500.0,0.00013699,2]
[403087995,1769145038727,-500.0,0.00013699,2]
[403087996,1769145038736,-500.0,0.00013699,2]
[403087997,1769145038745,-160.1845089,0.00013699,2]
[403087998,1769145038754,-500.0,0.00013699,2]
[403087999,1769145038763,-500.0,0.00013699,2]
[403088000,1769145038772,-500.0,0.00013699,2]
[403088001,1769145038781,-500.0,0.00013699,2]
[403088002,1769145038790,-500.0,0.00013699,2]
[403088003,1769145038800,-500.0,0.00013699,2]
[403088004,1769145038808,-158.1019371,0.00013699,2]
[403088005,1769145038818,-326.02850629,0.00013699,2]
[403088006,1769145038827,-500.0,0.00013699,2]
[403088007,1769145038836,-500.0,0.00013699,2]
[403088008,1769145038845,-500.0,0.00013699,2]
[403088009,1769145038854,-500.0,0.00013699,2]
[403088010,1769145038863,-501.93006265,0.00013699,2]
[403088011,1769145038873,-272.59333789,0.00013699,2]
[403088012,1769145038883,-299.9295039,0.00013699,2]
[403088013,1769145038892,-500.0,0.00013699,2]
[403088014,1769145038902,-500.0,0.00013699,2]
[403088015,1769145038911,-160.25817065,0.00013699,2]
[403088016,1769145038920,-500.0,0.00013699,2]
[403088017,1769145038929,-500.0,0.00013699,2]
[403088018,1769145038938,-500.0,0.00013699,2]
[403088019,1769145038948,-500.0,0.00013699,2]
[403088020,1769145038957,-500.0,0.00013699,2]
[403088021,1769145038966,-500.0,0.00013699,2]
[403088022,1769145038975,-500.0,0.00013699,2]
[403088023,1769145038984,-500.0,0.00013699,2]
[403088024,1769145038994,-632.06205633,0.00013699,2]
[403088025,1769145039003,-500.0,0.00013699,2]
[403088026,1769145039012,-500.0,0.00013699,2]
[403088027,1769145039022,-500.0,0.00013699,2]
[403088028,1769145039031,-500.0,0.00013699,2]
[403088029,1769145039040,-500.0,0.00013699,2]
[403088030,1769145039050,-500.0,0.00013699,2]
[403088031,1769145039059,-500.0,0.00013699,2]
[403088032,1769145039068,-500.0,0.00013699,2]
[403088033,1769145039078,-500.0,0.00013699,2]
[403088034,1769145039088,-500.0,0.00013699,2]
[403088035,1769145039098,-396.08472239,0.00013699,2]
[403088036,1769145039107,-500.0,0.00013699,2]
[403088037,1769145039116,-500.0,0.00013699,2]
[403088038,1769145039126,-500.0,0.00013699,2]
[403088039,1769145039135,-500.0,0.00013699,2]
[403088040,1769145039144,-500.0,0.00013699,2]
[403088041,1769145039153,-500.0,0.00013699,2]
[403088042,1769145039166,-551.82915682,0.00013699,2]
[403088043,1769145039175,-500.0,0.00013699,2]
[403088044,1769145039184,-500.0,0.00013699,2]
[403088045,1769145039193,-500.0,0.00013699,2]
[403088046,1769145039203,-500.0,0.00013699,2]
[403088047,1769145039212,-615.0,0.00013699,2]
[403088048,1769145039221,-772.11175584,0.00013821,2]
[403088049,1769145039231,-1117.05098939,0.00013821,2]
[403088050,1769145039242,-1000.0,0.00013821,2]
[403088051,1769145039251,-1000.0,0.00013821,2]
[403088052,1769145039260,-1000.0,0.00013821,2]
[403088053,1769145039270,-1000.0,0.00013821,2]
[403088054,1769145039279,-954.24667218,0.00013821,2]
[403088055,1769145039288,-1000.0,0.00013821,2]
[403088056,1769145039297,-1000.0,0.00013821,2]
[403088057,1769145039306,-1000.0,0.00013821,2]
[403088058,1769145039315,-1000.0,0.00013821,2]
[403088059,1769145039324,-1000.0,0.00013821,2]
[403088060,1769145039333,-1000.0,0.00013821,2]
[403088061,1769145039342,-1000.0,0.00013821,2]
[403088062,1769145039350,-267.85782573,0.00013821,2]
[403088063,1769145039359,-1000.0,0.00013821,2]
[403088064,1769145039368,-620.89938643,0.00013821,2]
[403088065,1769145039377,-1003.1595078,0.00013821,2]
[403088066,1769145039386,-1000.0,0.00013821,2]
[403088067,1769145039394,-1000.0,0.00013821,2]
[403088068,1769145039403,-1000.0,0.00013821,2]
[403088069,1769145039412,-456.44796674,0.00013821,2]
[403088070,1769145039421,-1000.0,0.00013821,2]
[403088071,1769145039431,-1000.0,0.00013821,2]
[403088072,1769145039439,-1000.0,0.00013821,2]
[403088073,1769145039448,-1000.0,0.00013821,2]
[403088074,1769145039457,-164.46928928,0.00013821,2]
[403088075,1769145039466,-1000.0,0.00013821,2]
[403088076,1769145039475,-500.0,0.00013988,2]
[403088077,1769145039484,-2099.83597528,0.0001412,2]
[403088078,1769145039493,-4727.44795365,0.00014147,2]
[403088079,1769145039503,-319.66263641,0.00014219,2]
[403088080,1769145039512,-283.006,0.0001422,2]
[403088081,1769145039521,-178.73770675,0.0001422,2]
[403088082,1769145039530,-600.0,0.00014221,2]
[403088083,1769145039539,-1000.0,0.00014247,2]
[403088084,1769145039548,-501.55585405,0.00014247,2]
[403088085,1769145039557,-1000.0,0.00014247,2]
[403088086,1769145039566,-1000.0,0.00014247,2]
[403088087,1769145039575,-1000.0,0.00014247,2]
[403088088,1769145039584,-504.09504759,0.00014247,2]
[403088089,1769145039592,-1000.0,0.00014247,2]
[403088090,1769145039601,-1000.0,0.00014247,2]
[403088091,1769145039610,-1005.04304669,0.00014247,2]
[403088092,1769145039619,-577.05675222,0.00014247,2]
[403088093,1769145039628,-1000.0,0.00014247,2]
[403088094,1769145039637,-435.78110733,0.00014247,2]
[403088095,1769145039646,-1000.0,0.00014247,2]
[403088096,1769145039655,-1000.0,0.00014247,2]
[403088097,1769145039664,-1000.0,0.00014247,2]
[403088098,1769145039673,-1000.0,0.00014247,2]
[403088099,1769145039682,-1000.0,0.00014247,2]
[403088100,1769145039692,-1000.0,0.00014247,2]
[403088101,1769145039702,-1000.0,0.00014247,2]
[403088102,1769145039713,-1000.0,0.00014247,2]
[403088103,1769145039722,-1000.0,0.00014247,2]
[403088104,1769145039731,-1003.70909511,0.00014247,2]
[403088105,1769145039740,-1000.0,0.00014247,2]
[403088106,1769145039750,-1000.0,0.00014247,2]
[403088107,1769145039759,-1000.0,0.00014247,2]
[403088108,1769145039768,-614.12659995,0.00014247,2]
[403088109,1769145039777,-1126.30118058,0.00014247,2]
[403088110,1769145039787,-1000.0,0.00014247,2]
[403088111,1769145039796,-1000.0,0.00014247,2]
[403088112,1769145039805,-254.07886139,0.00014247,2]
[403088113,1769145039814,-1000.0,0.00014247,2]
[403088114,1769145039822,-1000.0,0.00014247,2]
[403088115,1769145039832,-711.8877979,0.00014247,2]
[403088116,1769145039842,-1000.0,0.00014247,2]
[403088117,1769145039853,-1000.0,0.00014247,2]
[403088118,1769145039863,-1000.0,0.00014247,2]
[403088119,1769145039873,-1000.0,0.00014247,2]
[403088120,1769145039882,-1000.0,0.00014247,2]
[403088121,1769145039892,-1004.42644605,0.00014247,2]
[403088122,1769145039901,-1006.33977774,0.00014247,2]
[403088123,1769145039912,-1000.0,0.00014247,2]
[403088124,1769145039921,-1000.0,0.00014247,2]
[403088125,1769145039930,-1000.0,0.00014247,2]
[403088126,1769145039939,-1000.0,0.00014247,2]
[403088127,1769145039949,-240.50872747,0.00014247,2]
[403088128,1769145039958,-1000.0,0.00014247,2]
[403088129,1769145039966,-1000.0,0.00014247,2]
[403088130,1769145039975,-1000.0,0.00014247,2]
[403088131,1769145039985,-333.46036776,0.00014247,2]
[403088132,1769145039994,-1000.0,0.00014247,2]
[403088133,1769145040005,-1000.0,0.00014247,2]
[403088134,1769145040014,-1000.0,0.00014247,2]
[403088135,1769145040023,-1000.0,0.00014247,2]
[403088136,1769145040033,-1000.0,0.00014247,2]
[403088137,1769145040042,-502.31560209,0.00014247,2]
[403088138,1769145040051,-470.65712758,0.00014247,2]
[403088139,1769145040060,-554.50883106,0.00014247,2]
[403088140,1769145040069,-1000.0,0.00014247,2]
[403088141,1769145040078,-1000.0,0.00014247,2]
[403088142,1769145040087,-1000.0,0.00014247,2]
[403088143,1769145040096,-1000.0,0.00014247,2]
[403088144,1769145040106,-1000.0,0.00014247,2]
[403088145,1769145040115,-220.27309293,0.00014247,2]
[403088146,1769145040124,-1000.0,0.00014247,2]
[403088147,1769145040133,-1000.0,0.00014247,2]
[403088148,1769145040143,-301.37842811,0.00014368,2]
[403088149,1769145040152,-1497.56469147,0.00014368,2]
[403088150,1769145040163,-1500.0,0.00014368,2]
[403088151,1769145040173,-463.21285258,0.00014368,2]
[403088152,1769145040182,-504.54480887,0.00014368,2]
[403088153,1769145040191,-1500.0,0.00014368,2]
[403088154,1769145040200,-425.81576355,0.00014368,2]
[403088156,1769145040209,-1500.0,0.00014368,2]
[403088158,1769145040218,-1500.0,0.00014368,2]
[403088160,1769145040227,-1500.0,0.00014368,2]
[403088162,1769145040237,-1500.0,0.00014368,2]
[403088164,1769145040246,-1500.0,0.00014368,2]
[403088165,1769145040255,-1004.81684473,0.00014368,2]
[403088166,1769145040265,-1500.0,0.00014368,2]
[403088168,1769145040274,-1500.0,0.00014368,2]
[403088170,1769145040282,-753.08443821,0.00014368,2]
[403088172,1769145040291,-1500.0,0.00014368,2]
[403088174,1769145040301,-1500.0,0.00014368,2]
[403088175,1769145040309,-1500.0,0.00014368,2]
[403088177,1769145040319,-1500.0,0.00014368,2]
[403088179,1769145040328,-1099.828776,0.00014368,2]
[403088181,1769145040337,-1500.0,0.00014368,2]
[403088183,1769145040346,-1500.0,0.00014368,2]
[403088185,1769145040355,-1045.36718669,0.00014368,2]
[403088187,1769145040364,-151.0,0.000145,2]
[403088189,1769145040373,-151.0,0.000145,2]
[403088191,1769145040382,-151.0,0.000145,2]
[403088193,1769145040391,-151.0,0.000145,2]
[403088195,1769145040400,-151.0,0.000145,2]
[403088197,1769145040409,-151.0,0.000145,2]
[403088199,1769145040419,-151.0,0.000145,2]
[403088201,1769145040428,-527.55,0.00014598,2]
[403088203,1769145040436,-527.55,0.00014598,2]
[403088205,1769145040445,-527.55,0.00014598,2]
[403088207,1769145040454,-527.55,0.00014598,2]
[403088208,1769145040463,-527.55,0.00014598,2]
[403088210,1769145040472,-527.55,0.00014598,2]
[403088212,1769145040481,-527.55,0.00014598,2]
[403088214,1769145040490,-527.55,0.00014598,2]
[403088216,1769145040499,-527.55,0.00014598,2]
[403088218,1769145040508,-527.55,0.00014598,2]
[403088220,1769145040517,-527.55,0.00014598,2]
[403088222,1769145040526,-527.55,0.00014598,2]
[403088224,1769145040536,-527.55,0.00014598,2]
[403088226,1769145040545,-527.55,0.00014598,2]
[403088228,1769145040555,-527.55,0.00014598,2]
[403088230,1769145040564,-527.55,0.00014598,2]
[403088232,1769145040575,-527.55,0.00014598,2]
[403088234,1769145040584,-527.55,0.00014598,2]
[403088236,1769145040593,-527.55,0.00014598,2]
[403088238,1769145040602,-527.55,0.00014598,2]
[403088240,1769145040611,-527.55,0.00014598,2]
[403088242,1769145040620,-527.55,0.00014598,2]
[403088244,1769145040629,-527.55,0.00014598,2]
[403088246,1769145040638,-527.55,0.00014598,2]
[403088248,1769145040647,-527.55,0.00014598,2]
[403088250,1769145040656,-527.55,0.00014598,2]
[403088252,1769145040665,-527.55,0.00014598,2]
[403088254,1769145040674,-733.76,0.00014598,2]
[403088256,1769145040683,-151.0,0.000146,2]
[403088258,1769145040692,-151.0,0.000146,2]
[403088260,1769145040701,-151.0,0.000146,2]
[403088262,1769145040712,-151.0,0.000146,2]
[403088264,1769145040721,-151.0,0.000146,2]
[403088266,1769145040730,-151.0,0.000146,2]
[403088268,1769145040739,-151.0,0.000146,2]
[403088270,1769145040749,-151.0,0.000146,2]
[403088272,1769145040759,-184.9512162,0.00014697,2]
[403088274,1769145040768,-500.0,0.00014697,2]
[403088276,1769145040777,-500.0,0.00014697,2]
[403088278,1769145040786,-500.0,0.00014697,2]
[403088280,1769145040795,-251.86478099,0.00014697,2]
[403088282,1769145040803,-500.0,0.00014697,2]
[403088284,1769145040812,-500.0,0.00014697,2]
[403088286,1769145040821,-500.0,0.00014697,2]
[403088288,1769145040830,-492.70915793,0.00014697,2]
[403088290,1769145040840,-500.0,0.00014697,2]
[403088292,1769145040849,-500.0,0.00014697,2]
[403088294,1769145040858,-500.0,0.00014697,2]
[403088295,1769145040867,-500.0,0.00014697,2]
[403088296,1769145040876,-500.0,0.00014697,2]
[403088297,1769145040885,-500.0,0.00014697,2]
[403088298,1769145040894,-500.0,0.00014697,2]
[403088299,1769145040903,-500.0,0.00014697,2]
[403088300,1769145040912,-500.0,0.00014697,2]
[403088301,1769145040921,-500.0,0.00014697,2]
[403088302,1769145040930,-500.0,0.00014697,2]
[403088303,1769145040938,-500.0,0.00014697,2]
[403088304,1769145040947,-500.0,0.00014697,2]
[403088305,1769145040955,-500.0,0.00014697,2]
[403088307,1769145040965,-500.0,0.00014697,2]
[403088309,1769145040974,-500.0,0.00014697,2]
[403088312,1769145040983,-500.0,0.00014697,2]
[403088314,1769145040992,-500.0,0.00014697,2]
[403088316,1769145041002,-586.53134031,0.00014697,2]
[403088317,1769145041011,-900.0,0.00014768,2]
[403088319,1769145041020,-520.91428024,0.00014795,2]
[403088322,1769145041029,-1500.0,0.00014795,2]
[403088324,1769145041038,-1500.0,0.00014795,2]
[403088325,1769145041048,-1505.72220422,0.00014795,2]
[403088327,1769145041057,-1500.0,0.00014795,2]
[403088329,1769145041067,-356.03228176,0.00014795,2]
[403088331,1769145041076,-568.59325034,0.00014795,2]
[403088334,1769145041087,-1500.0,0.00014795,2]
[403088336,1769145041099,-1610.17218104,0.00014795,2]
[403088338,1769145041108,-585.34170512,0.00014795,2]
[403088340,1769145041118,-1003.30537573,0.00014795,2]
[403088342,1769145041127,-1500.0,0.00014795,2]
[403088344,1769145041136,-504.27900561,0.00014795,2]
[403088346,1769145041145,-684.34582962,0.00014795,2]
[403088348,1769145041154,-502.65651904,0.00014795,2]
[403088350,1769145041166,-1001.77010954,0.00014795,2]
[403088352,1769145041175,-1004.29608637,0.00014795,2]
[403088354,1769145041184,-1500.0,0.00014795,2]
[403088356,1769145041193,-947.14757103,0.00014795,2]
[403088357,1769145041203,-1033.24034979,0.00014795,2]
[403088359,1769145041212,-1163.17755779,0.00014795,2]
[403088361,1769145041222,-1500.0,0.00014795,2]
[403088363,1769145041231,-1538.27179129,0.00014795,2]
[403088366,1769145041242,-868.95391795,0.00014795,2]
[403088367,1769145041252,-1500.0,0.00014795,2]
[403088370,1769145041262,-1178.47193555,0.00014795,2]
[403088372,1769145041271,-1500.0,0.00014795,2]
[403088374,1769145041280,-1500.0,0.00014795,2]
[403088376,1769145041288,-1500.0,0.00014795,2]
[403088378,1769145041297,-1500.0,0.00014795,2]
[403088380,1769145041306,-497.21066671,0.00014795,2]
[403088381,1769145041315,-1105.02448987,0.00014795,2]
[403088384,1769145041324,-1500.0,0.00014795,2]
[403088385,1769145041333,-1500.0,0.00014795,2]
[403088388,1769145041342,-816.443681,0.00014795,2]
[403088389,1769145041351,-1500.0,0.00014795,2]
[403088392,1769145041360,-1500.0,0.00014795,2]
[403088394,1769145041369,-1500.0,0.00014795,2]
[403088395,1769145041378,-880.3342691,0.00014795,2]
[403088397,1769145041387,-1004.27334491,0.00014795,2]
[403088399,1769145041397,-1500.0,0.00014795,2]
[403088402,1769145041407,-1500.0,0.00014795,2]
[403088403,1769145041415,-1258.34343024,0.00014795,2]
[403088405,1769145041424,-1500.0,0.00014795,2]
[403088408,1769145041435,-1006.24928857,0.00014795,2]
[403088409,1769145041444,-647.24011922,0.00014795,2]
[403088411,1769145041453,-1500.0,0.00014795,2]
[403088413,1769145041462,-300.0,0.00014888,2]
[403088416,1769145041472,-300.0,0.00014888,2]
[403088417,1769145041481,-300.0,0.00014888,2]
[403088420,1769145041490,-300.0,0.00014888,2]
[403088422,1769145041500,-300.0,0.00014888,2]
[403088424,1769145041509,-300.0,0.00014888,2]
[403088425,1769145041518,-300.0,0.00014888,2]
[403088428,1769145041527,-300.0,0.00014888,2]
[403088429,1769145041536,-300.0,0.00014888,2]
[403088432,1769145041545,-300.0,0.00014888,2]
[403088433,1769145041555,-300.0,0.00014888,2]
[403088436,1769145041564,-300.0,0.00014888,2]
[403088438,1769145041573,-300.0,0.00014888,2]
[403088439,1769145041582,-300.0,0.00014888,2]
[403088442,1769145041592,-300.0,0.00014888,2]
[403088443,1769145041602,-600.0,0.00014888,2]
[403088446,1769145041611,-467.22341348,0.00014916,2]
[403088447,1769145041622,-1131.08387072,0.00014916,2]
[403088449,1769145041631,-503.36382493,0.00014916,2]
[403088451,1769145041640,-954.35869627,0.00014916,2]
[403088453,1769145041649,-2000.0,0.00014916,2]
[403088455,1769145041658,-2000.0,0.00014916,2]
[403088457,1769145041667,-2000.0,0.00014916,2]
[403088460,1769145041677,-1381.12505126,0.00014916,2]
[403088461,1769145041686,-2000.0,0.00014916,2]
[403088463,1769145041695,-1632.68634088,0.00014916,2]
[403088466,1769145041704,-1430.38962383,0.00014916,2]
[403088468,1769145041713,-2000.0,0.00014916,2]
[403088470,1769145041723,-2000.0,0.00014916,2]
[403088472,1769145041731,-2000.0,0.00014916,2]
[403088474,1769145041740,-2000.0,0.00014916,2]
[403088476,1769145041749,-7153.23284599,0.00015,2]
[403088478,1769145041758,-420.0,0.00015011,2]
[403088480,1769145041766,-1680.0,0.00015067,2]
[403088481,1769145041775,-185.841829,0.00015068,2]
[403088484,1769145041785,-788.12,0.00015242,2]
[403088485,1769145041795,-1200.0,0.00015316,2]
[403088487,1769145041804,-1006.30618315,0.00015342,2]
[403088490,1769145041814,-714.26411498,0.00015342,2]
[403088492,1769145041823,-335.75938749,0.00015342,2]
[403088494,1769145041833,-563.14117432,0.00015342,2]
[403088496,1769145041841,-2000.0,0.00015342,2]
[403088498,1769145041850,-1505.26295846,0.00015342,2]
[403088500,1769145041860,-2012.03042922,0.00015342,2]
[403088502,1769145041868,-742.97231724,0.00015342,2]
[403088503,1769145041878,-2000.0,0.00015342,2]
[403088505,1769145041887,-2000.0,0.00015342,2]
[403088507,1769145041896,-2106.8265554,0.00015342,2]
[403088509,1769145041905,-1484.5242166,0.00015342,2]
[403088512,1769145041914,-944.83278886,0.00015342,2]
[403088514,1769145041923,-2000.0,0.00015342,2]
[403088516,1769145041932,-532.3582484,0.00015342,2]
[403088518,1769145041941,-2000.0,0.00015342,2]
[403088520,1769145041951,-336.4468968,0.00015342,2]
[403088522,1769145041960,-2000.0,0.00015342,2]
[403088523,1769145041969,-2000.0,0.00015342,2]
[403088525,1769145041978,-2000.0,0.00015342,2]
[403088527,1769145041987,-1007.26487549,0.00015342,2]
[403088529,1769145041996,-500.0,0.000154,7]
[403088531,1769145042005,-40995.64324277,0.000154,2]
[403088533,1769145042015,-2500.0,0.00015464,2]
[403088535,1769145042024,-2500.0,0.00015464,2]
[403088537,1769145042034,-2500.0,0.00015464,2]
[403088539,1769145042043,-2500.0,0.00015464,2]
[403088541,1769145042052,-2500.0,0.00015464,2]
[403088543,1769145042061,-2500.0,0.00015464,2]
[403088545,1769145042070,-2500.0,0.00015464,2]
[403088547,1769145042079,-2500.0,0.00015464,2]
[403088549,1769145042088,-1566.6,0.00015623,2]
[403088551,1769145042097,-5000.0,0.0001564,2]
[403088553,1769145042107,-10000.0,0.00015687,2]
[403088555,1769145042116,-10000.0,0.00015687,2]
[403088557,1769145042125,-10000.0,0.00015687,2]
[403088559,1769145042135,-9219.51,0.00015687,2]
[403088561,1769145042144,-292.06295927,0.00015699,2]
[403088563,1769145042154,-962.53932792,0.00015749,30]
[403088565,1769145042166,-820.51955747,0.00015749,30]
[403088567,1769145042175,-1500.0,0.00015864,2]
[403088569,1769145042184,-1175.27837272,0.0001589,2]
[403088571,1769145042194,-2500.0,0.0001589,2]
[403088593,1769145042379,-2500.0,0.0001589,2]
[403088595,1769145042390,-2500.0,0.0001589,2]
[403088597,1769145042399,-687.83807512,0.0001589,2]
[403088599,1769145042407,-2500.0,0.0001589,2]
[403088601,1769145042416,-1059.40385095,0.0001589,2]
[403088603,1769145042425,-2500.0,0.0001589,2]
[403088605,1769145042435,-3000.0,0.00016012,2]
[403088607,1769145042445,-3000.0,0.00016012,2]
[403088609,1769145042454,-3000.0,0.00016012,2]
[403088611,1769145042463,-3000.0,0.00016012,2]
[403088613,1769145042473,-3000.0,0.00016012,2]
[403088614,1769145042483,-3000.0,0.00016012,2]
[403088617,1769145042494,-3000.0,0.00016012,2]
[403088618,1769145042504,-3000.0,0.00016012,2]
[403088621,1769145042512,-4727.44795364,0.00016035,2]
[403088623,1769145042522,-720.0,0.00016377,2]
[403088625,1769145042531,-1800.0,0.00016412,2]
[403088627,1769145042541,-294.76614741,0.00016438,2]
[403088629,1769145042552,-2379.12821676,0.00016438,2]
[403088631,1769145042561,-3000.0,0.00016438,2]
[403088632,1769145042571,-3000.0,0.00016438,2]
[403088635,1769145042582,-3000.0,0.00016438,2]
[403088637,1769145042591,-3000.0,0.00016438,2]
[403088639,1769145042600,-260.64400764,0.00016438,2]
[403088640,1769145042610,-475.0,0.00016446,2]
[403088643,1769145042620,-587.0,0.00016451,2]
[403088645,1769145042630,-190.06150541,0.0001656,2]
[403088647,1769145042639,-3500.0,0.0001656,2]
[403088649,1769145042649,-2310.78669365,0.0001656,2]
[403088651,1769145042658,-3500.0,0.0001656,2]
[403088653,1769145042668,-3500.0,0.0001656,2]
[403088655,1769145042677,-3500.0,0.0001656,2]
[403088657,1769145042687,-3500.0,0.0001656,2]
[403088659,1769145042696,-3500.0,0.0001656,2]
[403088661,1769145042705,-2351.0,0.00016574,2]
[403088663,1769145042714,-500.0,0.00016797,10]
[403088665,1769145042723,-500.0,0.00016797,10]
[403088666,1769145042733,-2100.0,0.0001696,2]
[403088668,1769145042742,-3500.0,0.00016986,2]
[403088671,1769145042753,-1983.63053499,0.00016986,2]
[403088672,1769145042762,-3500.0,0.00016986,2]
[403088675,1769145042772,-3500.0,0.00016986,2]
[403088676,1769145042781,-4000.0,0.00017108,2]
[403088679,1769145042790,-4000.0,0.00017108,2]
[403088680,1769145042800,-4000.0,0.00017108,2]
[403088682,1769145042809,-4000.0,0.00017108,2]
[403088685,1769145042818,-4000.0,0.00017108,2]
[403088686,1769145042827,-4000.0,0.00017108,2]
[403088688,1769145042837,-2400.0,0.00017508,2]
[403088690,1769145042847,-151.0,0.00017534,2]
[403088692,1769145042856,-151.0,0.00017534,2]
[403088694,1769145042865,-151.0,0.00017534,2]
[403088697,1769145042875,-222.893048,0.00017534,2]
[403088699,1769145042884,-4106.99710976,0.00017534,2]
[403088701,1769145042894,-4000.0,0.00017534,2]
[403088703,1769145042903,-4000.0,0.00017534,2]
[403088705,1769145042913,-500.0,0.0001764,2]
[403088707,1769145042921,-500.0,0.0001764,2]
[403088709,1769145042930,-150.0,0.0001764,2]
[403088711,1769145042939,-150.0,0.0001764,2]
[403088713,1769145042948,-500.0,0.0001764,2]
[403088715,1769145042957,-500.0,0.0001764,2]
[403088716,1769145042966,-150.0,0.0001764,2]
[403088719,1769145042975,-500.0,0.0001764,2]
[403088721,1769145042984,-210.51801978,0.0001764,2]
[403088722,1769145042993,-150.0,0.0001764,2]
[403088725,1769145043003,-500.0,0.0001764,2]
[403088726,1769145043012,-150.0,0.0001764,2]
[403088729,1769145043022,-500.0,0.0001764,2]
[403088731,1769145043031,-500.0,0.0001764,2]
[403088733,1769145043041,-500.0,0.0001764,2]
[403088735,1769145043051,-500.0,0.0001764,2]
[403088736,1769145043060,-500.0,0.0001764,2]
[403088738,1769145043070,-500.0,0.0001764,2]
[403088740,1769145043080,-500.0,0.0001764,2]
[403088742,1769145043089,-150.0,0.0001764,2]
[403088745,1769145043099,-150.0,0.0001764,2]
[403088747,1769145043109,-163.04269363,0.0001764,2]
[403088748,1769145043118,-151.0,0.00017656,2]
[403088751,1769145043128,-151.0,0.00017656,2]
[403088753,1769145043138,-151.0,0.00017656,2]
[403088755,1769145043148,-151.0,0.00017656,2]